bitfinex-derivatives/quotes_BTCF0:USTF0_20250313
["timestamp","ask_amount","ask_price","bid_price","bid_amount"]
[1741884631777,0.00185677,80833.0,80832.0,0.1237356]
[1741884632082,0.00185677,80833.0,80832.0,0.2766956]
[1741884632879,0.12559087,80833.0,80832.0,0.2766956]
[1741884633084,0.00185677,80833.0,80832.0,0.2766956]
[1741884634278,0.12559087,80833.0,80832.0,0.2766956]
[1741884634476,0.00185677,80833.0,80832.0,0.2766956]
[1741884634683,0.00185677,80833.0,80832.0,0.2776956]
[1741884634882,0.12559087,80833.0,80832.0,0.2776956]
[1741884635981,0.00185677,80833.0,80832.0,0.2776956]
[1741884636182,0.00185677,80833.0,80832.0,0.3443956]
[1741884636696,0.12559087,80833.0,80832.0,0.3443956]
[1741884636898,0.00185677,80833.0,80832.0,0.3443956]
[1741884637690,0.18999087,80833.0,80832.0,0.0677]
[1741884637891,0.06625677,80833.0,80832.0,0.1247356]
[1741884638390,0.18999087,80833.0,80832.0,0.001]
[1741884638597,0.25669087,80833.0,80832.0,0.1247356]
[1741884639391,0.2548341,80833.0,80832.0,0.001]
[1741884639584,0.2548341,80833.0,80830.0,0.0667]
[1741884639585,0.1237632,80814.0,80809.0,0.15264]
[1741884639795,0.1237632,80814.0,80810.0,0.0685]
[1741884640093,0.1345,80819.0,80810.0,0.0685]
[1741884640295,0.0688,80819.0,80818.0,0.123757]
[1741884640494,0.00018562,80822.0,80821.0,0.1237524]
[1741884641000,2e-08,80822.0,80821.0,0.2765124]
[1741884641203,2e-08,80822.0,80821.0,0.5502541]
[1741884641394,2e-08,80822.0,80821.0,0.48441952]
[1741884641697,2e-08,80822.0,80821.0,0.63441952]
[1741884641896,2e-08,80822.0,80821.0,0.48441952]
[1741884642295,2e-08,80822.0,80821.0,0.63441952]
[1741884642798,2e-08,80822.0,80821.0,0.48441952]
[1741884643291,0.00100002,80822.0,80821.0,0.48441952]
[1741884643690,0.1237244,80840.0,80839.0,0.1237249]
[1741884643891,0.0691,80847.0,80841.0,0.1237218]
[1741884644197,0.1237188,80843.0,80842.0,0.1338]
[1741884644589,0.0618578,80845.0,80835.0,0.15228]
[1741884644590,0.0618644,80838.0,80837.0,0.1237274]
[1741884644792,0.002,80840.0,80837.0,0.0618633]
[1741884645093,0.002,80840.0,80839.0,0.1237249]
[1741884645501,0.002,80840.0,80839.0,0.2561249]
[1741884646003,0.33152505,80907.0,80839.0,0.27127165]
[1741884646004,0.1522,80878.0,80839.0,0.27127165]
[1741884646190,0.1522,80878.0,80858.0,0.1236958]
[1741884646191,0.0676,80870.0,80858.0,0.1236958]
[1741884646390,0.0664,80869.0,80858.0,0.1236958]
[1741884646698,8e-08,80859.0,80858.0,0.1236958]
[1741884646894,0.0676,80878.0,80877.0,0.1236668]
[1741884647086,0.1236515,80887.0,80886.0,0.1236515]
[1741884647399,0.1854849,80885.0,80884.0,0.1236556]
[1741884647699,0.0618279,80885.0,80882.0,0.1324]
[1741884647892,0.1236712,80876.0,80875.0,0.123669]
[1741884648094,0.0618314,80880.0,80879.0,0.1236637]
[1741884648393,0.134,80884.0,80874.0,0.1324]
[1741884648394,0.1236698,80875.0,80874.0,0.2560687]
[1741884648703,0.1236649,80879.0,80878.0,0.1236612]
[1741884648904,0.2518876,80884.0,80883.0,0.1236576]
[1741884649306,0.128228,80884.0,80883.0,0.1236576]
[1741884649506,0.1236442,80893.0,80892.0,0.1236408]
[1741884650000,0.1236442,80893.0,80883.0,0.0618284]
[1741884650001,0.1236545,80886.0,80885.0,0.1236494]
[1741884650208,0.0704,80894.0,80884.0,0.00018547]
[1741884650209,0.1236545,80885.0,80884.0,0.00018547]
[1741884650501,0.1886545,80885.0,80884.0,0.12384157]
[1741884650707,0.065,80885.0,80884.0,0.12384157]
[1741884651002,0.1886545,80885.0,80884.0,0.25614157]
[1741884651592,0.1886545,80885.0,80884.0,0.00018547]
[1741884651793,0.0618182,80897.0,80884.0,0.00018547]
[1741884651989,0.1357,80885.0,80884.0,0.12384157]
[1741884652190,0.2593545,80885.0,80884.0,0.12384157]
[1741884652394,0.1357,80885.0,80884.0,0.12384157]
[1741884652694,0.2593545,80885.0,80884.0,0.00018547]
[1741884652895,0.2593545,80885.0,80884.0,0.12384157]
[1741884654200,0.2593545,80885.0,80884.0,0.00018547]
[1741884656907,0.123679,80869.0,80868.0,0.2598747]
[1741884657398,0.1236851,80865.0,80864.0,0.00185485]
[1741884658210,0.13922439,80865.0,80864.0,0.00185485]
[1741884659611,0.13922439,80865.0,80864.0,0.12554145]
[1741884659806,0.14022439,80865.0,80864.0,0.12554145]
[1741884660113,0.14022439,80865.0,80864.0,0.00185485]
[1741884660307,0.14022439,80865.0,80864.0,0.12554145]
[1741884660507,0.14022439,80865.0,80856.0,0.00018547]
[1741884660508,0.01553929,80865.0,80856.0,0.00018547]
[1741884660702,0.1236973,80857.0,80856.0,0.12388417]
[1741884661514,0.0672,80858.0,80857.0,0.1236973]
[1741884661809,0.1908958,80858.0,80857.0,0.2612973]
[1741884662403,0.1908958,80858.0,80857.0,0.1376]
[1741884662603,0.1236973,80857.0,80856.0,0.00018547]
[1741884662905,0.1908973,80857.0,80856.0,0.00018547]
[1741884663107,0.1908973,80857.0,80841.0,0.0654]
[1741884663108,0.21892,80857.0,80841.0,0.0654]
[1741884663411,0.1855796,80844.0,80843.0,0.1237175]
[1741884663823,0.2573796,80844.0,80843.0,0.1237175]
[1741884664315,0.14913103,80844.0,80843.0,0.1237175]
[1741884664910,0.1237264,80838.0,80836.0,0.00185548]
[1741884665510,0.1237264,80838.0,80837.0,0.49289205]
[1741884665809,0.1237264,80838.0,80837.0,0.55859205]
[1741884666207,0.1237279,80837.0,80836.0,0.00185548]
[1741884666512,0.1894279,80837.0,80836.0,0.00185548]
[1741884666905,0.1894279,80837.0,80826.0,0.36916415]
[1741884666906,0.0618695,80830.0,80826.0,0.36916415]
[1741884667109,0.1237433,80827.0,80826.0,0.61664805]
[1741884667412,0.0657,80829.0,80828.0,0.1237417]
[1741884667610,0.001,80837.0,80836.0,0.1237295]
[1741884668114,0.001,80837.0,80836.0,0.2572295]
[1741884668309,0.1237267,80838.0,80837.0,0.1855882]
[1741884668512,0.1237267,80838.0,80837.0,0.0618633]
[1741884669016,0.1237267,80838.0,80837.0,0.1335]
[1741884669219,0.0618655,80835.0,80820.0,0.00108]
[1741884669518,0.0618639,80837.0,80828.0,0.12392717]
[1741884669519,0.1237402,80829.0,80828.0,0.12392717]
[1741884669716,0.1856047,80837.0,80836.0,0.061862]
[1741884669908,0.2474714,80837.0,80836.0,0.061862]
[1741884670216,0.2484714,80837.0,80836.0,0.061862]
[1741884670415,0.001,80837.0,80836.0,0.061862]
[1741884670716,0.1247279,80837.0,80836.0,0.127862]
[1741884671017,0.001,80837.0,80836.0,0.127862]
[1741884671329,0.001,80837.0,80836.0,0.066]
[1741884671613,0.0618654,80836.0,80825.0,0.0618728]
[1741884671804,0.1237402,80830.0,80829.0,0.3190681]
[1741884672001,0.1237402,80830.0,80829.0,0.3850681]
[1741884673118,0.2019402,80830.0,80829.0,0.3850681]
[1741884674012,0.2019402,80830.0,80829.0,0.1376]
[1741884674211,0.0618767,80821.0,80802.0,0.0618903]
[1741884674406,0.1237616,80815.0,80803.0,0.0687]
[1741884674715,0.1237616,80815.0,80804.0,0.0709]
[1741884675013,0.1237616,80815.0,80809.0,0.1256268]
[1741884675212,0.1856483,80813.0,80810.0,0.1365829]
[1741884675415,0.1237626,80815.0,80814.0,0.1237616]
[1741884676319,0.1237595,80817.0,80816.0,0.1237586]
[1741884677114,0.13876137,80817.0,80816.0,0.1237586]
[1741884677310,0.01500187,80817.0,80816.0,0.1237586]
[1741884677512,0.00018559,80823.0,80822.0,0.1237509]
[1741884677912,0.12393499,80823.0,80820.0,0.0765]
[1741884678112,0.1237693,80810.0,80809.0,0.185655]
[1741884678319,0.1237693,80810.0,80809.0,0.3094214]
[1741884680116,0.1237724,80808.0,80807.0,0.0712]
[1741884680422,0.1237724,80808.0,80807.0,0.1949739]
[1741884680624,0.001,80810.0,80807.0,0.0712]
[1741884680919,0.1866572,80810.0,80809.0,0.1237708]
[1741884681121,0.0628848,80810.0,80809.0,0.1237708]
[1741884681322,0.001,80810.0,80809.0,0.1237708]
[1741884681518,0.0748,80842.0,80822.0,0.1237509]
[1741884681718,0.1237473,80825.0,80822.0,0.1237509]
[1741884682019,0.01533166,80826.0,80822.0,0.1237509]
[1741884682224,0.12393499,80823.0,80822.0,0.1237509]
[1741884682723,0.00018559,80823.0,80822.0,0.1237509]
[1741884682907,0.15077659,80843.0,80818.0,0.14892]
[1741884683113,0.185598,80839.0,80838.0,0.1237218]
[1741884683822,0.1856062,80833.0,80832.0,0.185594]
[1741884684917,0.0618676,80833.0,80832.0,0.185594]
[1741884685221,0.1345659,80835.0,80834.0,0.1237325]
[1741884686117,0.1345659,80835.0,80825.0,0.0789]
[1741884686118,0.1237448,80826.0,80825.0,0.0789]
[1741884686516,0.1237448,80826.0,80825.0,0.2026463]
[1741884686728,0.1856137,80832.0,80831.0,0.1237315]
[1741884687422,0.00185659,80843.0,80838.0,0.1237264]
[1741884687623,0.00185659,80843.0,80840.0,0.1237234]
[1741884688220,0.00185659,80843.0,80840.0,0.1980234]
[1741884688824,0.1237211,80842.0,80840.0,0.1980234]
[1741884689023,0.12390739,80841.0,80840.0,0.1980234]
[1741884689817,0.12390739,80841.0,80840.0,0.0743]
[1741884690119,0.12390739,80841.0,80840.0,0.1980234]
[1741884690523,0.12390739,80841.0,80840.0,0.2703234]
[1741884690524,0.19960739,80841.0,80840.0,0.2703234]
[1741884691337,0.1237325,80834.0,80833.0,0.1855996]
[1741884691627,0.1237325,80834.0,80833.0,0.2007341]
[1741884692133,0.1237433,80827.0,80826.0,0.2717029]
[1741884692422,0.1237433,80827.0,80826.0,0.2009429]
[1741884693026,0.0725,80828.0,80826.0,0.2009429]
[1741884693227,0.1962425,80828.0,80827.0,0.1237433]
[1741884693526,0.1996302,80836.0,80835.0,0.123731]
[1741884693734,0.1962302,80836.0,80835.0,0.123731]
[1741884694527,0.1962302,80836.0,80834.0,0.078]
[1741884694528,0.1237243,80840.0,80839.0,0.1237249]
[1741884694832,0.1966234,80840.0,80839.0,0.1237249]
[1741884695228,0.2724234,80840.0,80839.0,0.1237249]
[1741884695429,0.1237279,80837.0,80836.0,0.1855922]
[1741884695631,0.0729,80840.0,80839.0,0.1237249]
[1741884696142,0.0618632,80838.0,80834.0,0.078]
[1741884696329,0.123731,80835.0,80834.0,0.078]
[1741884697125,0.123731,80835.0,80834.0,0.2017325]
[1741884697433,0.123731,80835.0,80834.0,0.21388032]
[1741884697821,0.123731,80835.0,80834.0,0.09014782]
[1741884698035,0.1856072,80832.0,80831.0,0.1237365]
[1741884698429,0.2161685,80832.0,80831.0,0.13580749]
[1741884698728,0.1543,80832.0,80831.0,0.1237365]
[1741884698936,0.0782,80832.0,80831.0,0.1358075]
[1741884699323,0.2019356,80832.0,80831.0,0.1358075]
[1741884699524,0.0782,80832.0,80831.0,0.1358075]
[1741884699831,0.0761,80835.0,80831.0,0.1358075]
[1741884699832,0.00018559,80841.0,80840.0,0.1237234]
[1741884700230,0.12390739,80841.0,80840.0,0.1948234]
[1741884700435,0.19890739,80841.0,80840.0,0.1948234]
[1741884700626,0.07518559,80841.0,80840.0,0.1948234]
[1741884700825,0.07518559,80841.0,80840.0,0.20687376]
[1741884701035,0.19890739,80841.0,80840.0,0.1948234]
[1741884701351,9e-08,80841.0,80840.0,0.20686765]
[1741884701530,0.0618458,80863.0,80859.0,0.0618468]
[1741884701836,0.14314173,80872.0,80840.0,0.15784425]
[1741884701837,0.1236912,80861.0,80860.0,0.0711]
[1741884702132,0.17817471,80861.0,80860.0,0.0711]
[1741884702336,0.33187471,80861.0,80860.0,0.0711]
[1741884703229,0.1237035,80853.0,80852.0,0.18573739]
[1741884703832,0.1502,80854.0,80852.0,0.06203729]
[1741884704035,0.0618425,80866.0,80852.0,0.00018559]
[1741884704228,0.00934175,80872.0,80859.0,0.0618471]
[1741884704429,0.073,80870.0,80868.0,0.1236805]
[1741884704634,0.16329562,80869.0,80868.0,0.1236805]
[1741884705028,0.12386459,80869.0,80868.0,0.1236805]
[1741884705537,0.01509636,80869.0,80850.0,0.01466041]
[1741884705737,0.1236882,80863.0,80862.0,0.0765]
[1741884705923,0.0618432,80865.0,80860.0,0.14672]
[1741884706127,0.11801818,80864.0,80852.0,0.14670559]
[1741884706323,0.11801818,80864.0,80852.0,0.00018559]
[1741884706324,0.1237035,80853.0,80852.0,0.00018559]
[1741884706528,0.2703035,80853.0,80852.0,9e-08]
[1741884706729,0.45972168,80853.0,80852.0,9e-08]
[1741884707827,0.1237264,80838.0,80837.0,0.29470665]
[1741884708027,0.03941818,80838.0,80832.0,0.32177725]
[1741884708225,0.1237417,80828.0,80823.0,0.00185577]
[1741884708428,0.16315988,80828.0,80823.0,0.00185577]
[1741884708631,0.1237662,80812.0,80811.0,0.1472]
[1741884708833,0.1237693,80810.0,80809.0,0.30041724]
[1741884709033,0.1856665,80807.0,80806.0,0.1237693]
[1741884709241,0.1856665,80807.0,80803.0,0.19656509]
[1741884709242,0.1237785,80804.0,80803.0,0.19656509]
[1741884709440,0.0776,80806.0,80805.0,0.1237769]
[1741884710041,0.2013754,80806.0,80805.0,0.1237769]
[1741884711039,0.0618758,80822.0,80811.0,0.1237669]
[1741884711238,0.14668,80824.0,80803.0,0.07278559]
[1741884711239,0.0776,80813.0,80803.0,0.07278559]
[1741884711436,0.1237785,80804.0,80803.0,0.00018559]
[1741884711933,0.16322081,80804.0,80803.0,0.00018559]
[1741884712736,0.1237969,80792.0,80791.0,0.0764]
[1741884712938,0.1238061,80786.0,80785.0,0.0784]
[1741884713334,0.01457182,80786.0,80782.0,0.0764]
[1741884713644,0.1238082,80786.0,80785.0,0.1238076]
[1741884713842,0.12390828,80786.0,80785.0,0.1238076]
[1741884714039,0.19500828,80786.0,80785.0,0.1238076]
[1741884714441,0.00010008,80786.0,80785.0,0.1238076]
[1741884714946,0.12390618,80786.0,80785.0,0.1238076]
[1741884716247,0.12390618,80786.0,80785.0,0.1258076]
[1741884716446,0.12390618,80786.0,80785.0,0.002]
[1741884717340,0.00010008,80786.0,80785.0,0.1258076]
[1741884718337,0.12390618,80786.0,80785.0,0.002]
[1741884719050,0.12390618,80786.0,80785.0,0.1258076]
[1741884719445,0.12390618,80786.0,80785.0,0.002]
[1741884720241,0.00010008,80786.0,80785.0,0.1258076]
[1741884720439,0.00010008,80786.0,80785.0,0.2740076]
[1741884720836,0.12390618,80786.0,80785.0,0.2740076]
[1741884721241,0.12390618,80786.0,80785.0,0.1502]
[1741884721854,0.12390618,80786.0,80785.0,0.0742]
[1741884722046,0.27500618,80786.0,80785.0,0.002]
[1741884722940,0.27500618,80786.0,80785.0,0.1258076]
[1741884723351,0.27500618,80786.0,80785.0,0.2746076]
[1741884723547,0.27500618,80786.0,80785.0,0.1508]
[1741884723747,0.27500618,80786.0,80785.0,0.2746076]
[1741884723948,0.00010008,80786.0,80785.0,0.2746076]
[1741884724452,0.12390618,80786.0,80785.0,0.1508]
[1741884724849,0.00010008,80786.0,80785.0,0.2746076]
[1741884725149,0.12390618,80786.0,80785.0,0.2746076]
[1741884725449,0.00010008,80786.0,80785.0,0.2746076]
[1741884726648,0.00185741,80803.0,80785.0,0.27458459]
[1741884726850,0.00185741,80803.0,80802.0,0.1237815]
[1741884727443,0.00185741,80803.0,80802.0,0.2754815]
[1741884727644,0.00190603,80803.0,80802.0,0.2754815]
[1741884727849,0.12568603,80803.0,80802.0,0.2754815]
[1741884728651,0.19958603,80803.0,80802.0,0.2754815]
[1741884729056,0.07580603,80803.0,80794.0,0.00018559]
[1741884729355,0.07580603,80803.0,80795.0,0.0748]
[1741884729356,0.1237907,80796.0,80795.0,0.0748]
[1741884729546,4.862e-05,80796.0,80787.0,0.0769]
[1741884729750,0.123803,80788.0,80787.0,0.0769]
[1741884729947,0.123803,80788.0,80787.0,0.2007045]
[1741884730142,0.1238023,80789.0,80788.0,0.1237999]
[1741884730654,0.185698,80793.0,80792.0,0.1237953]
[1741884730852,0.0776,80793.0,80790.0,0.1856967]
[1741884731052,0.0618985,80792.0,80780.0,0.07918559]
[1741884731455,0.1857071,80789.0,80788.0,0.0619005]
[1741884731849,0.0619014,80789.0,80787.0,0.001]
[1741884732050,0.0618985,80792.0,80780.0,0.00018559]
[1741884732051,0.1238137,80781.0,80780.0,0.00018559]
[1741884732250,0.12386232,80781.0,80780.0,0.12400089]
[1741884732647,4.862e-05,80781.0,80780.0,0.12400089]
[1741884733251,0.12386232,80781.0,80780.0,0.12400089]
[1741884733452,4.862e-05,80781.0,80780.0,0.12400089]
[1741884734156,0.12386232,80781.0,80780.0,0.12400089]
[1741884735052,4.862e-05,80781.0,80780.0,0.12700089]
[1741884735451,0.12386232,80781.0,80780.0,0.00318559]
[1741884735647,0.12386232,80781.0,80753.0,0.0619281]
[1741884735648,0.13299533,80781.0,80753.0,0.0619281]
[1741884735859,0.17887661,80770.0,80758.0,0.0777]
[1741884736057,0.0619093,80778.0,80758.0,0.0777]
[1741884736261,0.1238207,80777.0,80776.0,0.1238214]
[1741884736461,0.1238207,80777.0,80774.0,0.0619115]
[1741884736664,0.0619091,80778.0,80770.0,0.0619151]
[1741884736665,0.123829,80771.0,80770.0,0.1238293]
[1741884736857,0.0619122,80774.0,80767.0,0.00018571]
[1741884737056,0.1238336,80768.0,80767.0,0.12401781]
[1741884737255,0.1238336,80768.0,80767.0,0.00018571]
[1741884737454,0.1238336,80768.0,80767.0,0.12402091]
[1741884737853,0.0775,80772.0,80767.0,0.06210261]
[1741884738052,0.0775,80772.0,80771.0,0.123829]
[1741884738252,0.1328092,80778.0,80769.0,0.0619154]
[1741884738454,0.1947205,80778.0,80777.0,0.1238199]
[1741884738760,0.03122858,80802.0,80777.0,0.1238199]
[1741884738761,0.01448515,80789.0,80777.0,0.1238199]
[1741884738958,2e-08,80779.0,80778.0,0.1238183]
[1741884739165,2e-08,80779.0,80778.0,0.13887236]
[1741884739361,0.1237926,80795.0,80792.0,0.1237969]
[1741884739561,0.23373277,80793.0,80792.0,0.1237969]
[1741884739952,0.10993747,80793.0,80792.0,0.1237969]
[1741884741165,0.00018571,80801.0,80797.0,0.1237892]
[1741884741370,0.00018571,80801.0,80797.0,0.3326431]
[1741884741371,0.11069308,80798.0,80797.0,0.3326431]
[1741884741557,0.07602088,80798.0,80797.0,0.3326431]
[1741884741758,0.36413113,80834.0,80797.0,0.70576]
[1741884741965,0.19280326,80823.0,80822.0,0.1237509]
[1741884742654,0.19280326,80823.0,80822.0,0.2005509]
[1741884744266,0.00018559,80831.0,80830.0,0.1237387]
[1741884744468,0.07598559,80831.0,80830.0,0.1237387]
[1741884744667,0.00018559,80831.0,80830.0,0.1237387]
[1741884745063,0.12392269,80831.0,80830.0,0.1237387]
[1741884745969,0.12992269,80831.0,80830.0,0.1237387]
[1741884746373,0.00618559,80831.0,80829.0,0.0768]
[1741884746581,0.2698387,80830.0,80829.0,0.2005398]
[1741884746780,0.1461,80830.0,80829.0,0.2005398]
[1741884746977,0.0709,80830.0,80829.0,0.2005398]
[1741884747674,0.14568,80854.0,80838.0,0.0618631]
[1741884747877,0.0709,80843.0,80842.0,0.1237203]
[1741884748172,0.2698081,80851.0,80850.0,0.1237081]
[1741884749487,0.0618548,80849.0,80842.0,0.00018559]
[1741884749678,0.1237188,80843.0,80842.0,0.00018559]
[1741884749981,0.1481,80848.0,80847.0,0.1237126]
[1741884750874,0.0743,80848.0,80847.0,0.1237126]
[1741884751079,0.0743,80848.0,80847.0,0.2021126]
[1741884751580,0.01443713,80857.0,80847.0,0.0784]
[1741884751888,0.0724,80856.0,80855.0,0.1237004]
[1741884752179,0.0618382,80871.0,80867.0,0.1236806]
[1741884752482,0.1236875,80864.0,80863.0,0.123686]
[1741884752787,0.1236989,80856.0,80855.0,0.1855479]
[1741884752977,0.0618483,80858.0,80857.0,0.1236973]
[1741884753175,0.0754,80863.0,80847.0,0.0777]
[1741884753376,0.00018437,80866.0,80865.0,0.1236851]
[1741884753584,0.12386797,80866.0,80865.0,0.1236851]
[1741884754484,0.00018437,80866.0,80865.0,0.1236851]
[1741884755086,7e-08,80866.0,80865.0,0.39734723]
[1741884755584,7e-08,80866.0,80865.0,0.32034723]
[1741884756180,7e-08,80866.0,80865.0,0.47034723]
[1741884756880,7e-08,80866.0,80865.0,0.32034723]
[1741884757690,7e-08,80866.0,80865.0,0.2736851]
[1741884758287,0.12368367,80866.0,80865.0,0.2736851]
[1741884758680,0.1236851,80865.0,80864.0,0.1236861]
[1741884758988,0.1496,80865.0,80864.0,0.1236866]
[1741884760485,0.1983687,80876.0,80875.0,0.1236698]
[1741884760681,0.0747,80876.0,80873.0,0.0618357]
[1741884760882,0.0747,80876.0,80868.0,0.0618397]
[1741884760883,0.1236882,80864.0,80863.0,0.1236843]
[1741884761295,0.1236785,80870.0,80869.0,0.1236775]
[1741884762592,0.1236897,80862.0,80861.0,0.12387497]
[1741884762794,0.1236897,80862.0,80861.0,0.24756457]
[1741884763188,0.1236869,80864.0,80863.0,0.1236851]
[1741884763494,0.1236882,80863.0,80862.0,0.0618445]
[1741884763699,0.0773,80865.0,80864.0,0.1236851]
[1741884763889,0.2593076,80875.0,80861.0,0.00018547]
[1741884764086,0.1974698,80875.0,80874.0,0.1236713]
[1741884764287,0.0618375,80872.0,80864.0,0.076]
[1741884764488,0.1236882,80863.0,80862.0,0.0618443]
[1741884764689,0.1236897,80862.0,80861.0,0.00018547]
[1741884765493,0.01414907,80862.0,80861.0,0.00018547]
[1741884765697,0.0763,80863.0,80862.0,0.1236897]
[1741884765895,0.061825,80888.0,80864.0,0.0618427]
[1741884766092,0.1236545,80886.0,80885.0,0.123653]
[1741884766289,0.0618343,80876.0,80871.0,0.22532]
[1741884766585,0.061833,80878.0,80873.0,0.1236713]
[1741884766790,0.0763,80875.0,80874.0,0.1236713]
[1741884766987,0.0759,80888.0,80887.0,0.1236515]
[1741884767200,0.1995499,80888.0,80887.0,0.1236515]
[1741884767390,0.185499,80879.0,80878.0,0.1236586]
[1741884767897,0.1236611,80881.0,80880.0,0.1236606]
[1741884768097,0.2024611,80881.0,80880.0,0.1236606]
[1741884768398,0.2784611,80881.0,80880.0,0.1236606]
[1741884768897,0.1236652,80879.0,80878.0,0.1236641]
[1741884769125,0.076,80881.0,80880.0,0.1236622]
[1741884769399,0.1092998,80900.0,80878.0,0.0618319]
[1741884769400,0.0788,80887.0,80878.0,0.074]
[1741884769591,0.1548,80887.0,80886.0,0.123653]
[1741884770192,0.076,80887.0,80886.0,0.123653]
[1741884770404,0.1996515,80887.0,80886.0,0.123653]
[1741884770603,0.1533,80887.0,80886.0,0.123653]
[1741884770987,0.01398031,80897.0,80889.0,0.1236484]
[1741884771201,0.1964397,80895.0,80889.0,0.1236484]
[1741884771502,0.1964397,80895.0,80887.0,0.12365]
[1741884771503,0.0618234,80891.0,80888.0,0.2019484]
[1741884771705,0.2737484,80889.0,80888.0,0.2019484]
[1741884771902,0.1501,80889.0,80888.0,0.2019484]
[1741884772204,0.2737484,80889.0,80888.0,0.2743484]
[1741884772704,0.1501,80889.0,80888.0,0.2743484]
[1741884773203,0.0728,80889.0,80888.0,0.2743484]
[1741884773404,0.079,80896.0,80889.0,0.1236484]
[1741884773598,0.1543,80896.0,80889.0,0.2702484]
[1741884773792,0.1236426,80893.0,80889.0,0.2702484]
[1741884774189,0.1255025,80890.0,80889.0,0.2702484]
[1741884774392,0.0018556,80890.0,80870.0,0.00108]
[1741884774595,0.1236591,80882.0,80881.0,0.12384607]
[1741884774990,0.1236591,80882.0,80881.0,0.00018547]
[1741884775195,0.2779577,80883.0,80882.0,0.1236591]
[1741884775397,0.079,80883.0,80882.0,0.1989591]
[1741884775603,0.079,80883.0,80882.0,0.2702591]
[1741884776003,0.2026506,80888.0,80885.0,0.0618269]
[1741884776202,0.2026506,80888.0,80887.0,0.1236515]
[1741884776399,0.2013497,80889.0,80888.0,0.1236499]
[1741884776596,0.0777,80889.0,80888.0,0.1236499]
[1741884776800,0.0777,80889.0,80888.0,0.2799499]
[1741884777193,0.0018556,80890.0,80889.0,0.1236484]
[1741884777498,0.1255025,80890.0,80889.0,0.1236484]
[1741884777694,0.1255025,80890.0,80889.0,0.2025484]
[1741884777897,0.1255025,80890.0,80889.0,0.2799484]
[1741884777898,0.0018556,80890.0,80889.0,0.2799484]
[1741884778297,0.1255025,80890.0,80889.0,0.2799484]
[1741884779107,0.1255025,80890.0,80889.0,0.0789]
[1741884779296,0.1255025,80890.0,80889.0,0.2025484]
[1741884779496,0.1236591,80882.0,80881.0,0.12384567]
[1741884779704,0.1236591,80882.0,80881.0,0.19774567]
[1741884780111,0.1236591,80882.0,80881.0,0.07408547]
[1741884780300,0.1236591,80882.0,80881.0,0.12384607]
[1741884780609,0.16085747,80897.0,80889.0,0.1236484]
[1741884780809,0.1255025,80890.0,80889.0,0.1236484]
[1741884781105,0.0018556,80890.0,80889.0,0.1236484]
[1741884781314,0.0618131,80904.0,80899.0,0.1236331]
[1741884781503,0.2236326,80900.0,80899.0,0.1236331]
[1741884781898,0.2972326,80900.0,80899.0,0.1236331]
[1741884782312,0.31137057,80900.0,80899.0,0.1236331]
[1741884782500,0.1236484,80889.0,80888.0,0.1999695]
[1741884782900,0.1236484,80889.0,80888.0,0.1854653]
[1741884783101,0.1236443,80892.0,80891.0,0.1236438]
[1741884783303,0.0618201,80895.0,80894.0,0.1236408]
[1741884783612,0.1,80900.0,80891.0,0.1236438]
[1741884783812,0.2236323,80900.0,80899.0,0.1236331]
[1741884785711,0.1,80900.0,80899.0,0.1236331]
[1741884785915,0.1,80900.0,80899.0,0.2006331]
[1741884786309,0.00064,80919.0,80916.0,0.1236071]
[1741884786507,0.01418072,80921.0,80916.0,0.1236071]
[1741884786810,0.14672,80927.0,80916.0,0.1236071]
[1741884787009,0.0140746,80923.0,80916.0,0.1236071]
[1741884787213,0.0617962,80926.0,80916.0,0.1236071]
[1741884787419,0.17887661,80940.0,80916.0,0.1236071]
[1741884787420,0.34280178,80931.0,80916.0,0.1236071]
[1741884787713,0.1961949,80924.0,80923.0,0.1235965]
[1741884787909,0.1236041,80919.0,80918.0,0.1236029]
[1741884788313,0.2020041,80919.0,80918.0,0.1236029]
[1741884788918,0.1236056,80917.0,80916.0,0.2708441]
[1741884789409,0.1236178,80909.0,80908.0,0.00018547]
[1741884790315,0.1235928,80926.0,80915.0,0.1236087]
[1741884790610,0.1236043,80918.0,80915.0,0.1236087]
[1741884790821,0.1236059,80917.0,80915.0,0.1236087]
[1741884791117,0.1955071,80916.0,80915.0,0.1236087]
[1741884791417,0.1236102,80914.0,80913.0,0.1854139]
[1741884791610,0.0618072,80912.0,80908.0,0.00018547]
[1741884791809,0.1236178,80909.0,80908.0,0.00018547]
[1741884792015,0.1236178,80909.0,80906.0,0.22136381]
[1741884792310,0.1236255,80904.0,80903.0,0.29367519]
[1741884793011,0.1236255,80904.0,80903.0,0.41730219]
[1741884793316,0.1236255,80904.0,80903.0,0.29367519]
[1741884793717,0.1236255,80904.0,80903.0,0.41730219]
[1741884794019,0.00018508,80912.0,80911.0,0.1236148]
[1741884795712,0.12379838,80912.0,80911.0,0.1236148]
[1741884795909,0.123627,80903.0,80902.0,0.2472543]
[1741884796115,0.123627,80903.0,80902.0,0.1236271]
[1741884796311,0.1236377,80896.0,80895.0,0.12382456]
[1741884796517,0.0759,80905.0,80895.0,0.00018536]
[1741884796709,0.2613416,80905.0,80904.0,0.1236255]
[1741884796914,0.1377127,80905.0,80904.0,0.1236255]
[1741884797217,0.1236301,80901.0,80900.0,0.0618157]
[1741884797815,0.1377127,80905.0,80895.0,0.00018536]
[1741884798008,0.1236377,80896.0,80895.0,0.00018536]
[1741884798213,0.1236377,80896.0,80895.0,0.12382456]
[1741884799310,0.1236377,80896.0,80895.0,0.00018536]
[1741884799716,0.1630938,80896.0,80895.0,0.00018536]
[1741884799918,0.1236392,80895.0,80890.0,0.1236464]
[1741884800121,0.1630953,80895.0,80888.0,0.0618249]
[1741884800317,0.123653,80886.0,80885.0,0.29367519]
[1741884800509,0.1631091,80886.0,80885.0,0.29367519]
[1741884800714,0.3098291,80886.0,80885.0,0.29367519]
[1741884800917,0.3098291,80886.0,80885.0,0.41732969]
[1741884801314,0.3098291,80886.0,80885.0,0.29367519]
[1741884801623,0.3098291,80886.0,80885.0,0.41732969]
[1741884801826,0.0394561,80886.0,80885.0,0.41732969]
[1741884802014,0.123653,80886.0,80885.0,0.41732819]
[1741884802208,0.192753,80886.0,80885.0,0.41732819]
[1741884802923,0.192753,80886.0,80885.0,0.123653]
[1741884803121,0.0618306,80881.0,80860.0,0.061846]
[1741884803325,0.1236652,80878.0,80877.0,0.12385216]
[1741884803823,0.2040311,80880.0,80879.0,0.1236637]
[1741884804219,0.1422,80880.0,80879.0,0.1236637]
[1741884804612,0.2658622,80880.0,80879.0,0.1236637]
[1741884805325,0.0731,80880.0,80879.0,0.1236637]
[1741884805525,0.0618237,80890.0,80889.0,0.1236484]
[1741884805821,0.2594698,80892.0,80891.0,0.1236438]
[1741884806321,0.17528695,80892.0,80887.0,0.061825]
[1741884806632,0.1236499,80888.0,80887.0,0.1854745]